fUSD/lending_fUSD_20240919
["ID","MTS","AMOUNT","RATE_DAILY","PERIOD"]
[338504858,1726710639946,-2160.31779273,0.00013,2]
[338504859,1726710639960,-349152.58426608,0.00013,2]
[338504891,1726710700685,-1271464.64294404,0.00013,2]
[338504892,1726710700695,-326.91268026,0.00013,2]
[338504893,1726710700704,-182.23077345,0.00013,2]
[338504894,1726710700713,-10701.9049985,0.00013,2]
[338504895,1726710700722,-1100.0,0.00013,2]
[338504896,1726710700731,-190.17165095,0.00013,2]
[338504897,1726710700741,-346.94,0.00013069,2]
[338504898,1726710700751,-473.37949342,0.00013099,2]
[338504899,1726710700761,-180.91,0.00013223,2]
[338504900,1726710700770,-174.47,0.00013223,2]
[338504901,1726710700780,-150.0,0.00013699,2]
[338504902,1726710700789,-353.49,0.000138,2]
[338504903,1726710700798,-1023.31894188,0.000138,2]
[338504904,1726710700807,-500.0,0.00013894,2]
[338504905,1726710700817,-181.69185377,0.000139,2]
[338504906,1726710700826,-310.87662846,0.00013904,2]
[338504907,1726710700835,-3948.6597205,0.00014,2]
[338504908,1726710700845,-255.0,0.00014008,2]
[338504909,1726710700855,-184.44,0.00014039,2]
[338504910,1726710700864,-150.0,0.00014059,2]
[338504911,1726710700875,-200.0,0.00014095,2]
[338504912,1726710700893,-151.16,0.00014192,2]
[338504913,1726710700903,-840.0,0.00014213,2]
[338504914,1726710700913,-5000.0,0.000143,2]
[338504915,1726710700926,-903.05938704,0.00014342,2]
[338504916,1726710700935,-459.743,0.00014374,2]
[338504917,1726710700945,-150.0,0.00014374,2]
[338504918,1726710700955,-500.0,0.0001439,30]
[338504919,1726710700964,-506.02435099,0.0001439,30]
[338504920,1726710700974,-502.26780019,0.0001439,30]
[338504921,1726710700983,-503.38301893,0.0001439,30]
[338504922,1726710700993,-507.44798434,0.0001439,30]
[338504923,1726710701004,-3000.0,0.000144,2]
[338504924,1726710701014,-150.0,0.0001442,2]
[338504925,1726710701023,-1534.52823398,0.0001448,2]
[338504926,1726710701033,-5000.0,0.000145,2]
[338504927,1726710701042,-877.9,0.00014518,2]
[338504928,1726710701052,-151.0,0.0001452,2]
[338504929,1726710701061,-151.0,0.0001452,2]
[338504930,1726710701070,-151.0,0.0001452,2]
[338504931,1726710701079,-151.0,0.0001452,2]
[338504932,1726710701089,-500.0,0.0001452,2]
[338504933,1726710701098,-500.0,0.0001452,2]
[338504934,1726710701107,-500.0,0.0001452,2]
[338504935,1726710701116,-500.0,0.0001452,2]
[338504936,1726710701126,-500.0,0.0001452,2]
[338504937,1726710701141,-500.0,0.0001452,2]
[338504938,1726710701151,-500.0,0.0001452,2]
[338504939,1726710701160,-500.0,0.0001452,2]
[338504940,1726710701170,-443.6928298,0.0001452,2]
[338504941,1726710701179,-224.458693,0.0001452,2]
[338504942,1726710701188,-151.66886,0.0001452,2]
[338504943,1726710701198,-500.0,0.0001452,2]
[338504944,1726710701207,-500.0,0.0001452,2]
[338504945,1726710701216,-500.0,0.0001452,2]
[338504946,1726710701226,-500.0,0.0001452,2]
[338504947,1726710701235,-500.0,0.0001452,2]
[338504948,1726710701243,-500.0,0.0001452,2]
[338504949,1726710701253,-500.0,0.0001452,2]
[338504950,1726710701262,-500.0,0.0001452,2]
[338504951,1726710701271,-500.0,0.0001452,2]
[338504952,1726710701280,-500.0,0.0001452,2]
[338504953,1726710701289,-500.0,0.0001452,2]
[338504954,1726710701299,-500.0,0.0001452,2]
[338504955,1726710701308,-500.0,0.0001452,2]
[338504956,1726710701317,-591.84390149,0.0001452,2]
[338504957,1726710701327,-898.26,0.0001452,2]
[338504958,1726710701336,-151.0,0.0001452,2]
[338504959,1726710701345,-151.498854,0.0001452,2]
[338504960,1726710701355,-1617.71,0.0001452,2]
[338504961,1726710701364,-500.0,0.0001452,2]
[338504962,1726710701374,-151.35066,0.0001452,2]
[338504963,1726710701389,-152.06207,0.0001452,2]
[338504964,1726710701399,-1107.75,0.0001452,2]
[338504965,1726710701408,-500.0,0.0001452,2]
[338504966,1726710701418,-725.48,0.0001452,2]
[338504967,1726710701427,-500.0,0.0001452,2]
[338504968,1726710701437,-500.0,0.0001452,2]
[338504969,1726710701446,-500.0,0.0001452,2]
[338504970,1726710701455,-670.68,0.0001452,2]
[338504971,1726710701464,-1333.79,0.0001452,2]
[338504972,1726710701473,-151.0,0.0001452,2]
[338504973,1726710701482,-168.481183,0.0001452,2]
[338504974,1726710701492,-500.0,0.0001452,2]
[338504975,1726710701501,-500.0,0.0001452,2]
[338504976,1726710701511,-1198.42,0.0001452,2]
[338504977,1726710701520,-500.0,0.0001452,2]
[338504978,1726710701530,-500.0,0.0001452,2]
[338504979,1726710701539,-151.0,0.0001452,2]
[338504980,1726710701656,-500.0,0.0001452,2]
[338504981,1726710701665,-151.0,0.0001452,2]
[338504982,1726710701674,-1915.29,0.0001452,2]
[338504983,1726710701683,-500.0,0.0001452,2]
[338504984,1726710701692,-500.0,0.0001452,2]
[338504985,1726710701702,-928.19,0.0001452,2]
[338504986,1726710701711,-670.98,0.0001452,2]
[338504987,1726710701720,-1268.61,0.0001452,2]
[338504988,1726710701730,-500.0,0.0001452,2]
[338504989,1726710701739,-500.0,0.0001452,2]
[338504990,1726710701748,-156.94330004,0.0001452,2]
[338504991,1726710701758,-500.0,0.0001452,2]
[338504992,1726710701767,-500.0,0.0001452,2]
[338504993,1726710701777,-974.81,0.0001452,2]
[338504994,1726710701787,-500.0,0.0001452,2]
[338504995,1726710701796,-500.0,0.0001452,2]
[338504996,1726710701806,-500.0,0.0001452,2]
[338504997,1726710701815,-500.0,0.0001452,2]
[338504998,1726710701824,-500.0,0.0001452,2]
[338504999,1726710701833,-500.0,0.0001452,2]
[338505000,1726710701842,-500.0,0.0001452,2]
[338505001,1726710701851,-500.0,0.0001452,2]
[338505002,1726710701861,-500.0,0.0001452,2]
[338505003,1726710701877,-500.0,0.0001452,2]
[338505004,1726710701889,-500.0,0.0001452,2]
[338505005,1726710701898,-735.55,0.0001452,2]
[338505006,1726710701908,-500.0,0.0001452,2]
[338505007,1726710701918,-648.33,0.0001452,2]
[338505008,1726710701927,-273.720276,0.0001452,2]
[338505009,1726710701935,-500.0,0.0001452,2]
[338505010,1726710701945,-500.0,0.0001452,2]
[338505011,1726710701955,-1288.29,0.0001452,2]
[338505012,1726710701963,-281.91971443,0.0001452,2]
[338505013,1726710701972,-500.0,0.0001452,2]
[338505014,1726710701981,-674.0,0.0001452,2]
[338505015,1726710701990,-500.0,0.0001452,2]
[338505016,1726710701999,-500.0,0.0001452,2]
[338505017,1726710702010,-500.0,0.0001452,2]
[338505018,1726710702020,-500.0,0.0001452,2]
[338505019,1726710702029,-500.0,0.0001452,2]
[338505020,1726710702039,-2703.63,0.0001452,2]
[338505021,1726710702048,-1066.27,0.0001452,2]
[338505022,1726710702057,-795.97,0.0001452,2]
[338505023,1726710702067,-151.333618,0.0001452,2]
[338505024,1726710702077,-500.0,0.0001452,2]
[338505025,1726710702086,-500.0,0.0001452,2]
[338505026,1726710702095,-1910.6,0.0001452,2]
[338505027,1726710702104,-500.0,0.0001452,2]
[338505028,1726710702113,-500.0,0.0001452,2]
[338505029,1726710702123,-500.0,0.0001452,2]
[338505030,1726710702136,-500.65,0.0001452,2]
[338505031,1726710702146,-1055.27,0.0001452,2]
[338505032,1726710702155,-1088.72,0.0001452,2]
[338505033,1726710702164,-500.84989131,0.0001452,2]
[338505034,1726710702174,-529.33,0.0001452,2]
[338505035,1726710702184,-654.55,0.0001452,2]
[338505036,1726710702194,-500.0,0.0001452,2]
[338505037,1726710702204,-807.61,0.0001452,2]
[338505038,1726710702214,-500.0,0.0001452,2]
[338505039,1726710702224,-2140.77,0.0001452,2]
[338505040,1726710702233,-936.47,0.0001452,2]
[338505041,1726710702242,-970.98,0.0001452,2]
[338505042,1726710702252,-720.92,0.0001452,2]
[338505043,1726710702261,-500.0,0.0001452,2]
[338505044,1726710702269,-500.0,0.0001452,2]
[338505045,1726710702279,-706.14,0.0001452,2]
[338505046,1726710702288,-500.0,0.0001452,2]
[338505047,1726710702297,-500.0,0.0001452,2]
[338505048,1726710702306,-500.0,0.0001452,2]
[338505049,1726710702316,-500.0,0.0001452,2]
[338505050,1726710702325,-177.76971405,0.0001452,2]
[338505051,1726710702334,-500.0,0.0001452,2]
[338505052,1726710702343,-608.54732998,0.0001452,2]
[338505053,1726710702354,-614.1,0.0001452,2]
[338505054,1726710702363,-500.0,0.0001452,2]
[338505055,1726710702373,-1235.34,0.0001452,2]
[338505056,1726710702385,-500.0,0.0001452,2]
[338505057,1726710702395,-1236.04,0.0001452,2]
[338505058,1726710702404,-901.35,0.0001452,2]
[338505059,1726710702413,-642.77,0.0001452,2]
[338505060,1726710702423,-581.66,0.0001452,2]
[338505061,1726710702432,-500.0,0.0001452,2]
[338505062,1726710702442,-573.62,0.0001452,2]
[338505063,1726710702451,-500.0,0.0001452,2]
[338505064,1726710702460,-500.0,0.0001452,2]
[338505065,1726710702469,-500.0,0.0001452,2]
[338505066,1726710702478,-976.84,0.0001452,2]
[338505067,1726710702488,-678.98,0.0001452,2]
[338505068,1726710702497,-500.0,0.0001452,2]
[338505069,1726710702507,-500.0,0.0001452,2]
[338505070,1726710702516,-934.23,0.0001452,2]
[338505071,1726710702525,-836.45,0.0001452,2]
[338505072,1726710702535,-1244.77,0.0001452,2]
[338505073,1726710702544,-500.0,0.0001452,2]
[338505074,1726710702553,-500.0,0.0001452,2]
[338505075,1726710702562,-500.0,0.0001452,2]
[338505076,1726710702572,-500.0,0.0001452,2]
[338505077,1726710702581,-500.0,0.0001452,2]
[338505078,1726710702590,-1114.52,0.0001452,2]
[338505079,1726710702599,-500.0,0.0001452,2]
[338505080,1726710702609,-500.0,0.0001452,2]
[338505081,1726710702618,-151.0,0.0001452,2]
[338505082,1726710702627,-1508.55,0.0001452,2]
[338505083,1726710702637,-500.0,0.0001452,2]
[338505084,1726710702646,-1279.68,0.0001452,2]
[338505085,1726710702655,-2285.72,0.0001452,2]
[338505086,1726710702664,-500.0,0.0001452,2]
[338505087,1726710702674,-1726.05,0.0001452,2]
[338505088,1726710702683,-500.0,0.0001452,2]
[338505089,1726710702691,-500.0,0.0001452,2]
[338505090,1726710702700,-676.28,0.0001452,2]
[338505091,1726710702709,-500.0,0.0001452,2]
[338505092,1726710702719,-772.38,0.0001452,2]
[338505093,1726710702728,-590.32,0.0001452,2]
[338505094,1726710702737,-500.0,0.0001452,2]
[338505095,1726710702746,-500.0,0.0001452,2]
[338505096,1726710702755,-500.0,0.0001452,2]
[338505097,1726710702764,-737.32,0.0001452,2]
[338505098,1726710702773,-500.0,0.0001452,2]
[338505099,1726710702782,-500.0,0.0001452,2]
[338505100,1726710702792,-500.0,0.0001452,2]
[338505101,1726710702801,-740.04,0.0001452,2]
[338505102,1726710702810,-2103.86,0.0001452,2]
[338505103,1726710702819,-500.0,0.0001452,2]
[338505104,1726710702829,-840.09,0.0001452,2]
[338505105,1726710702838,-813.73,0.0001452,2]
[338505106,1726710702847,-500.0,0.0001452,2]
[338505107,1726710702857,-815.1,0.0001452,2]
[338505108,1726710702866,-1831.39,0.0001452,2]
[338505109,1726710702878,-500.0,0.0001452,2]
[338505110,1726710702889,-500.0,0.0001452,2]
[338505111,1726710702898,-500.0,0.0001452,2]
[338505112,1726710702908,-932.73,0.0001452,2]
[338505113,1726710702919,-3679.72,0.0001452,2]
[338505114,1726710702927,-570.54,0.0001452,2]
[338505115,1726710702936,-792.25,0.0001452,2]
[338505116,1726710702947,-926.75,0.0001452,2]
[338505117,1726710702957,-2058.39,0.0001452,2]
[338505118,1726710702967,-513.47,0.0001452,2]
[338505119,1726710702976,-500.0,0.0001452,2]
[338505120,1726710702986,-500.0,0.0001452,2]
[338505121,1726710702996,-500.0,0.0001452,2]
[338505122,1726710703006,-736.79,0.0001452,2]
[338505123,1726710703015,-838.9,0.0001452,2]
[338505124,1726710703025,-654.83,0.0001452,2]
[338505125,1726710703035,-1013.69,0.0001452,2]
[338505126,1726710703044,-500.0,0.0001452,2]
[338505127,1726710703054,-619.98,0.0001452,2]
[338505128,1726710703064,-500.0,0.0001452,2]
[338505129,1726710703073,-792.96,0.0001452,2]
[338505130,1726710703082,-500.0,0.0001452,2]
[338505131,1726710703092,-262.46045048,0.0001452,2]
[338505132,1726710703101,-709.41,0.0001452,2]
[338505133,1726710703110,-612.96,0.0001452,2]
[338505134,1726710703119,-935.74,0.0001452,2]
[338505135,1726710703130,-632.76,0.0001452,2]
[338505136,1726710703140,-899.96,0.0001452,2]
[338505137,1726710703149,-633.59,0.0001452,2]
[338505138,1726710703159,-529.61,0.0001452,2]
[338505139,1726710703168,-500.0,0.0001452,2]
[338505140,1726710703178,-1271.14,0.0001452,2]
[338505141,1726710703188,-500.0,0.0001452,2]
[338505142,1726710703198,-500.0,0.0001452,2]
[338505143,1726710703207,-500.0,0.0001452,2]
[338505144,1726710703217,-500.0,0.0001452,2]
[338505145,1726710703227,-2133.56,0.0001452,2]
[338505146,1726710703236,-500.0,0.0001452,2]
[338505147,1726710703246,-829.78,0.0001452,2]
[338505148,1726710703257,-1126.61,0.0001452,2]
[338505149,1726710703267,-500.0,0.0001452,2]
[338505150,1726710703276,-1467.24,0.0001452,2]
[338505151,1726710703285,-500.0,0.0001452,2]
[338505152,1726710703294,-1708.91,0.0001452,2]
[338505153,1726710703304,-500.0,0.0001452,2]
[338505154,1726710703314,-815.61,0.0001452,2]
[338505155,1726710703323,-500.0,0.0001452,2]
[338505156,1726710703333,-500.0,0.0001452,2]
[338505157,1726710703342,-500.0,0.0001452,2]
[338505158,1726710703352,-500.0,0.0001452,2]
[338505159,1726710703362,-814.77,0.0001452,2]
[338505160,1726710703372,-976.77,0.0001452,2]
[338505161,1726710703382,-500.0,0.0001452,2]
[338505162,1726710703393,-500.0,0.0001452,2]
[338505163,1726710703402,-761.74,0.0001452,2]
[338505164,1726710703412,-336.91819944,0.0001452,2]
[338505165,1726710703421,-500.0,0.0001452,2]
[338505166,1726710703431,-2509.25,0.0001452,2]
[338505167,1726710703440,-151.0,0.0001452,2]
[338505168,1726710703450,-292.094051,0.0001452,2]
[338505169,1726710703459,-531.26,0.0001452,2]
[338505170,1726710703469,-1536.64,0.0001452,2]
[338505171,1726710703478,-151.0,0.0001452,2]
[338505172,1726710703487,-151.0,0.0001452,2]
[338505173,1726710703497,-571.9538838,0.0001452,2]
[338505174,1726710703507,-1320.44,0.0001452,2]
[338505175,1726710703516,-500.0,0.0001452,2]
[338505176,1726710703526,-151.0,0.0001452,2]
[338505177,1726710703536,-262.898087,0.0001452,2]
[338505178,1726710703545,-1071.13,0.0001452,2]
[338505179,1726710703555,-631.92,0.0001452,2]
[338505180,1726710703565,-500.0,0.0001452,2]
[338505181,1726710703574,-500.0,0.0001452,2]
[338505182,1726710703583,-860.83,0.0001452,2]
[338505183,1726710703593,-500.0,0.0001452,2]
[338505184,1726710703602,-500.0,0.0001452,2]
[338505185,1726710703611,-500.0,0.0001452,2]
[338505186,1726710703621,-967.26,0.0001452,2]
[338505187,1726710703632,-500.0,0.0001452,2]
[338505188,1726710703641,-1664.95,0.0001452,2]
[338505189,1726710703651,-500.0,0.0001452,2]
[338505190,1726710703660,-506.99,0.0001452,2]
[338505191,1726710703669,-956.0,0.0001452,2]
[338505192,1726710703678,-1630.19,0.0001452,2]
[338505193,1726710703688,-650.0,0.0001452,2]
[338505194,1726710703697,-1061.54,0.0001452,2]
[338505195,1726710703706,-877.55,0.0001452,2]
[338505196,1726710703716,-1054.05,0.0001452,2]
[338505197,1726710703725,-462.35849775,0.0001452,2]
[338505198,1726710703735,-1009.38,0.0001452,2]
[338505199,1726710703744,-500.0,0.0001452,2]
[338505200,1726710703753,-539.63,0.0001452,2]
[338505201,1726710703762,-151.0,0.0001452,2]
[338505202,1726710703772,-152.98582,0.0001452,2]
[338505203,1726710703781,-500.0,0.0001452,2]
[338505204,1726710703791,-585.97,0.0001452,2]
[338505205,1726710703801,-504.12,0.0001452,2]
[338505206,1726710703810,-1338.45,0.0001452,2]
[338505207,1726710703819,-5684.96,0.0001452,2]
[338505208,1726710703829,-500.0,0.0001452,2]
[338505209,1726710703839,-1508.43,0.0001452,2]
[338505210,1726710703848,-500.0,0.0001452,2]
[338505211,1726710703857,-1990.03,0.0001452,2]
[338505212,1726710703870,-500.0,0.0001452,2]
[338505213,1726710703879,-500.0,0.0001452,2]
[338505214,1726710703892,-500.0,0.0001452,2]
[338505215,1726710703902,-1288.43,0.0001452,2]
[338505216,1726710703913,-500.0,0.0001452,2]
[338505217,1726710703923,-500.0,0.0001452,2]
[338505218,1726710703932,-500.0,0.0001452,2]
[338505219,1726710703941,-726.43,0.0001452,2]
[338505220,1726710703952,-500.0,0.0001452,2]
[338505221,1726710703962,-1679.03,0.0001452,2]
[338505222,1726710703971,-500.0,0.0001452,2]
[338505223,1726710703981,-151.0,0.0001452,2]
[338505224,1726710703990,-151.0,0.0001452,2]
[338505225,1726710704000,-702.14,0.0001452,2]
[338505226,1726710704009,-500.0,0.0001452,2]
[338505227,1726710704018,-151.0,0.0001452,2]
[338505228,1726710704028,-556.65,0.0001452,2]
[338505229,1726710704037,-151.0,0.0001452,2]
[338505230,1726710704046,-151.0,0.0001452,2]
[338505231,1726710704056,-795.67,0.0001452,2]
[338505232,1726710704065,-1611.67,0.0001452,2]
[338505233,1726710704075,-153.106468,0.0001452,2]
[338505234,1726710704084,-500.0,0.0001452,2]
[338505235,1726710704094,-1917.54,0.0001452,2]
[338505236,1726710704103,-151.0,0.0001452,2]
[338505237,1726710704112,-184.761581,0.0001452,2]
[338505238,1726710704122,-500.0,0.0001452,2]
[338505239,1726710704134,-587.24,0.0001452,2]
[338505240,1726710704143,-500.0,0.0001452,2]
[338505241,1726710704152,-500.0,0.0001452,2]
[338505242,1726710704162,-500.0,0.0001452,2]
[338505243,1726710704171,-1743.75,0.0001452,2]
[338505244,1726710704180,-500.0,0.0001452,2]
[338505245,1726710704189,-801.24,0.0001452,2]
[338505246,1726710704198,-151.0,0.0001452,2]
[338505247,1726710704207,-500.0,0.0001452,2]
[338505248,1726710704216,-176.105342,0.0001452,2]
[338505249,1726710704226,-541.79,0.0001452,2]
[338505250,1726710704235,-500.0,0.0001452,2]
[338505251,1726710704244,-965.61,0.0001452,2]
[338505252,1726710704254,-500.0,0.0001452,2]
[338505253,1726710704263,-500.0,0.0001452,2]
[338505254,1726710704274,-2663.15,0.0001452,2]
[338505255,1726710704283,-500.0,0.0001452,2]
[338505256,1726710704292,-1511.02,0.0001452,2]
[338505257,1726710704302,-895.19,0.0001452,2]
[338505258,1726710704312,-500.0,0.0001452,2]
[338505259,1726710704321,-500.0,0.0001452,2]
[338505260,1726710704331,-716.4,0.0001452,2]
[338505261,1726710704341,-2541.24,0.0001452,2]
[338505262,1726710704351,-500.0,0.0001452,2]
[338505263,1726710704360,-500.0,0.0001452,2]
[338505264,1726710704370,-3332.55,0.0001452,2]
[338505265,1726710704380,-500.0,0.0001452,2]
[338505266,1726710704395,-152.259067,0.0001452,2]
[338505267,1726710704404,-992.68,0.0001452,2]
[338505268,1726710704413,-500.0,0.0001452,2]
[338505269,1726710704423,-580.31,0.0001452,2]
[338505270,1726710704432,-500.0,0.0001452,2]
[338505271,1726710704442,-2811.8,0.0001452,2]
[338505272,1726710704451,-1949.55,0.0001452,2]
[338505273,1726710704461,-500.0,0.0001452,2]
[338505274,1726710704470,-1164.37,0.0001452,2]
[338505275,1726710704480,-1520.84,0.0001452,2]
[338505276,1726710704489,-500.0,0.0001452,2]
[338505277,1726710704499,-1007.57,0.0001452,2]
[338505278,1726710704508,-2176.12,0.0001452,2]
[338505279,1726710704517,-500.0,0.0001452,2]
[338505280,1726710704527,-802.38,0.0001452,2]
[338505281,1726710704537,-1252.58,0.0001452,2]
[338505282,1726710704547,-639.25,0.0001452,2]
[338505283,1726710704556,-5646.73,0.0001452,2]
[338505284,1726710704566,-500.0,0.0001452,2]
[338505285,1726710704575,-1126.55,0.0001452,2]
[338505286,1726710704585,-528.5,0.0001452,2]
[338505287,1726710704595,-676.64,0.0001452,2]
[338505288,1726710704604,-500.0,0.0001452,2]
[338505289,1726710704613,-500.0,0.0001452,2]
[338505290,1726710704622,-500.0,0.0001452,2]
[338505291,1726710704634,-500.0,0.0001452,2]
[338505292,1726710704643,-706.22,0.0001452,2]
[338505293,1726710704653,-5802.02,0.0001452,2]
[338505294,1726710704662,-500.0,0.0001452,2]
[338505295,1726710704672,-500.0,0.0001452,2]
[338505296,1726710704681,-744.03,0.0001452,2]
[338505297,1726710704691,-500.0,0.0001452,2]
[338505298,1726710704701,-1176.16,0.0001452,2]
[338505299,1726710704710,-1475.02,0.0001452,2]
[338505300,1726710704719,-500.0,0.0001452,2]
[338505301,1726710704729,-151.0,0.0001452,2]
[338505302,1726710704738,-153.121956,0.0001452,2]
[338505303,1726710704748,-521.96,0.0001452,2]
[338505304,1726710704757,-962.72,0.0001452,2]
[338505305,1726710704766,-737.02,0.0001452,2]
[338505306,1726710704775,-500.0,0.0001452,2]
[338505307,1726710704784,-500.0,0.0001452,2]
[338505308,1726710704793,-708.64,0.0001452,2]
[338505309,1726710704803,-500.0,0.0001452,2]
[338505310,1726710704812,-2083.57,0.0001452,2]
[338505311,1726710704822,-655.77,0.0001452,2]
[338505312,1726710704832,-1891.37,0.0001452,2]
[338505313,1726710704842,-500.0,0.0001452,2]
[338505314,1726710704851,-500.0,0.0001452,2]
[338505315,1726710704860,-500.0,0.0001452,2]
[338505316,1726710704870,-500.0,0.0001452,2]
[338505317,1726710704883,-500.0,0.0001452,2]
[338505318,1726710704892,-500.0,0.0001452,2]
[338505319,1726710704901,-527.94147747,0.0001452,2]
[338505320,1726710704911,-206.90514749,0.0001452,2]
[338505321,1726710704921,-1666.27,0.0001452,2]
[338505322,1726710704930,-4112.41,0.0001452,2]
[338505323,1726710704939,-609.46,0.0001452,2]
[338505324,1726710704951,-1658.28,0.0001452,2]
[338505325,1726710704963,-500.0,0.0001452,2]
[338505326,1726710704972,-527.12,0.0001452,2]
[338505327,1726710704982,-1325.45,0.0001452,2]
[338505328,1726710704991,-4502.41,0.0001452,2]
[338505329,1726710705000,-151.0,0.0001452,2]
[338505330,1726710705009,-500.0,0.0001452,2]
[338505331,1726710705019,-151.0,0.0001452,2]
[338505332,1726710705028,-680.05,0.0001452,2]
[338505333,1726710705038,-727.59,0.0001452,2]
[338505334,1726710705047,-500.0,0.0001452,2]
[338505335,1726710705057,-2127.64,0.0001452,2]
[338505336,1726710705066,-1530.56,0.0001452,2]
[338505337,1726710705075,-500.00643944,0.0001452,2]
[338505338,1726710705085,-3185.93,0.0001452,2]
[338505339,1726710705094,-628.09320466,0.0001452,2]
[338505340,1726710705103,-831.75,0.0001452,2]
[338505341,1726710705113,-500.91,0.0001452,2]
[338505342,1726710705122,-500.0,0.0001452,2]
[338505343,1726710705134,-500.0,0.0001452,2]
[338505344,1726710705143,-500.0,0.0001452,2]
[338505345,1726710705153,-500.0,0.0001452,2]
[338505346,1726710705162,-500.0,0.0001452,2]
[338505347,1726710705171,-771.83,0.0001452,2]
[338505348,1726710705180,-500.0,0.0001452,2]
[338505349,1726710705189,-584.58,0.0001452,2]
[338505350,1726710705199,-797.42,0.0001452,2]
[338505351,1726710705209,-500.0,0.0001452,2]
[338505352,1726710705218,-500.0,0.0001452,2]
[338505353,1726710705228,-939.75,0.0001452,2]
[338505354,1726710705237,-3487.87,0.0001452,2]
[338505355,1726710705247,-500.37,0.0001452,2]
[338505356,1726710705257,-1098.57,0.0001452,2]
[338505357,1726710705267,-309.11479706,0.0001452,2]
[338505358,1726710705277,-500.0,0.0001452,2]
[338505359,1726710705286,-500.0,0.0001452,2]
[338505360,1726710705296,-1423.94,0.0001452,2]
[338505361,1726710705305,-1036.07,0.0001452,2]
[338505362,1726710705315,-500.0,0.0001452,2]
[338505363,1726710705324,-500.0,0.0001452,2]
[338505364,1726710705334,-4009.02,0.0001452,2]
[338505365,1726710705344,-500.0,0.0001452,2]
[338505366,1726710705354,-500.0,0.0001452,2]
[338505367,1726710705364,-500.0,0.0001452,2]
[338505368,1726710705374,-1822.11,0.0001452,2]
[338505369,1726710705385,-746.03,0.0001452,2]
[338505370,1726710705395,-710.43,0.0001452,2]
[338505371,1726710705404,-500.0,0.0001452,2]
[338505372,1726710705413,-500.0,0.0001452,2]
[338505373,1726710705423,-2191.51,0.0001452,2]
[338505374,1726710705433,-500.0,0.0001452,2]
[338505375,1726710705442,-3472.03,0.0001452,2]
[338505376,1726710705451,-500.0,0.0001452,2]
[338505377,1726710705461,-1277.8,0.0001452,2]
[338505378,1726710705470,-619.67,0.0001452,2]
[338505379,1726710705479,-151.357267,0.0001452,2]
[338505380,1726710705488,-500.0,0.0001452,2]
[338505381,1726710705498,-2195.18,0.0001452,2]
[338505382,1726710705508,-500.0,0.0001452,2]
[338505383,1726710705518,-1211.74,0.0001452,2]
[338505384,1726710705527,-500.0,0.0001452,2]
[338505385,1726710705536,-2169.77,0.0001452,2]
[338505386,1726710705546,-1507.66,0.0001452,2]
[338505387,1726710705556,-1013.61,0.0001452,2]
[338505388,1726710705566,-500.0,0.0001452,2]